Cogmind - Beta 14 @@@ ROGUE MODE // 2024.09.13 @ 18:39:24 Player: Dull Result: Destroyed by as-57598 with Assembled Heavy Rifle Performance ------------- Evolutions (0) 0 Regions Visited (4) 800 Robots Destroyed (29) 145 Value Destroyed (563) 563 Prototype IDs (24) 480 Alien Tech Used (0) 0 Bonus (-20) -20 TOTAL SCORE: 1968 Bonus ------- Follower Combat Kills 113 Friendly Fire -133 Cogmind --------- Core Integrity 0/250 Matter 215/300 Energy 166/170 System Corruption 0% Temperature Cool (0) Movement Treading (240) Ox1 Location -9/Mines Parts ------- > --- POWER (1) -------- Makeshift Power Source > --- PROPULSION (2) --- Light Treads Medium Treads > --- UTILITY (2) ------ Improved Cooling System Huge Storage Unit > --- WEAPON (2) ------- Gauss Cannon > --- INVENTORY (25) --- Ion Engine Micro Nuclear Core Light Angular Momentum Engine Compact Wheel Improved Heat Sink Improved Heat Sink Improved Heat Sink Medium Storage Unit High-capacity Matter Pod (200) Sensor Array Improved Terrain Scanner Core Analyzer Matter Filter Hardened Light Armor Plating Hacking Suite Thief Drone Bay (3/3) Beamcaster Advanced Assault Cannon Grenade Launcher Grenade Launcher Rocket Launcher Heavy Rocket Launcher Field Lobotomy Kit (5) Ripper Makeshift Spear Peak State ------------ > --- POWER ------------ Makeshift Power Source > --- PROPULSION ------- Light Treads Medium Treads > --- UTILITY ---------- Huge Storage Unit Thief Drone Bay > --- WEAPON ----------- Beamcaster Gauss Cannon > --- INVENTORY -------- Ion Engine Micro Nuclear Core Light Angular Momentum Engine Compact Wheel Improved Heat Sink Improved Heat Sink Improved Heat Sink Medium Storage Unit High-capacity Matter Pod Sensor Array Improved Terrain Scanner Core Analyzer Matter Filter Hardened Light Armor Plating Hacking Suite Advanced Assault Cannon Grenade Launcher Grenade Launcher Grenade Launcher Grenade Launcher Rocket Launcher Heavy Rocket Launcher Field Lobotomy Kit Ripper Makeshift Spear [Rating: 33] Favorites ----------- Power Improved Ion Engine Engine Improved Ion Engine Propulsion Light Treads Treads Light Treads Leg Aluminum Leg Wheel Wheel Utility Huge Storage Unit Device Improved Heat Sink Storage Huge Storage Unit Protection Light Armor Plating Weapon Beamcaster Energy Gun Beamcaster Ballistic Cannon Light Cannon Launcher Grenade Launcher Special Weapon Field Lobotomy Kit Build | -11 -10 -10 -10 -9 ------- Run | Yrd Mat Min Exi Min Slots Evolved . | . . . . . Power . | . . . . . Propulsion . | . . . . . Utility . | . . . . . Weapon . | . . . . . Parts Attached 30 | 3 8 8 5 6 Power 2 | . . 1 1 . Engine 2 | . . 1 1 . Core . | . . . . . Reactor . | . . . . . Propulsion 9 | 2 1 3 2 1 Treads 8 | 2 1 2 2 1 Leg . | . . . . . Wheel 1 | . . 1 . . Hover . | . . . . . Flight . | . . . . . Utility 10 | 1 4 2 . 3 Device 7 | 1 2 1 . 3 Storage 2 | . 2 . . . Processor . | . . . . . Hackware . | . . . . . Protection 1 | . . 1 . . Artifact . | . . . . . Weapon 9 | . 3 2 2 2 Energy Gun 4 | . 1 2 1 . Energy Cannon . | . . . . . Ballistic Gun . | . . . . . Ballistic Cannon 2 | . 1 . . 1 Launcher 2 | . 1 . . 1 Special Weapon 1 | . . . 1 . Impact Weapon . | . . . . . Slashing Weapon . | . . . . . Piercing Weapon . | . . . . . Special Melee Weapon . | . . . . . Unidentified Prototypes 2 | . . . 1 1 Parts Lost 4 | . 1 2 . 1 Power 1 | . 1 . . . Propulsion 1 | . . 1 . . Utility . | . . . . . Weapon 2 | . . 1 . 1 Highest Loss Streak 1 | . 1 1 . 1 To Critical Strikes . | . . . . . Average Slot Usage (%) 95 | . 89 98 99 99 Engine 10 | . 4 12 14 14 Treads 25 | . 28 23 20 28 Wheel 2 | . . 3 7 . Device 12 | . 14 9 14 14 Storage 14 | . 14 14 14 14 Protection 1 | . . 4 . . Energy Gun 16 | . 5 17 27 23 Ballistic Cannon 7 | . 13 4 . 4 Launcher 4 | . 9 5 . . Peak Build Rating 33 | 9 10 18 26 33 Average Rating 15 | 7 9 14 19 23 On Entrance 12 | 6 9 10 18 21 Naked Turns . | . . . . . Heaviest Build 98 | 13 89 98 94 98 Greatest Support 48 | 40 40 40 40 48 Greatest Overweight (x) 9 | . 2 9 9 2 Average Overweight (x) 3 | . 1 4 6 1 Largest Inventory Capacity 25 | 8 25 25 25 25 Average Capacity 23 | 8 21 25 25 25 Most Carried 25 | 6 23 25 25 25 Average Carried 21 | 6 17 24 24 24 Final Capacity 25 | 8 25 25 25 25 Final Carried 25 | 6 23 24 25 25 Class Distribution -------------------- 46% | Scavenger-Mutant 38% | Mutant 14% | Commander-Mutant Dominant Class ---------------- Mutant | -10/Materials Scavenger-Mutant | -10/Mines Scavenger-Mutant | -10/Exiles Scavenger-Mutant | -9/Mines Resources | -11 -10 -10 -10 -9 ----------- Run | Yrd Mat Min Exi Min Matter Collected 784 | 160 386 128 50 60 Remotely . | . . . . . Salvage Created 867 | 23 418 182 187 57 Parts 48 | 3 32 7 5 1 Haulers Intercepted 2 | . 2 . . . Recyclers Shooed . | . . . . . Parts Field Recycled . | . . . . . Retrieved Matter . | . . . . . Parts Self-Destructed . | . . . . . Prevented . | . . . . . Kills | -11 -10 -10 -10 -9 ------- Run | Yrd Mat Min Exi Min Combat Hostiles Destroyed 23 | . 13 4 . 6 Guns 5 | . 2 3 . . Cannons 11 | . 9 1 . 1 AOE 7 | . 2 . . 5 Classes Destroyed 9 | 1 7 . . 1 Worker 1 | . 1 . . . Builder 1 | . 1 . . . Tunneler 2 | 1 1 . . . Hauler 2 | . 2 . . . Operator 2 | . 2 . . . Watcher 3 | . 3 . . . Swarmer 7 | . 7 . . . Grunt 11 | . 6 4 1 . Assembled 6 | . . . . 6 Best Kill Streak 6 | 1 4 1 . 6 Combat Bots Only 6 | . 3 1 . 6 Max Kills in Single Turn 4 | 1 4 1 1 3 Gunslinging . | . . . . . Exploded 3 | . 2 . . 3 Melee . | . . . . . Uniques/NPCs Destroyed . | . . . . . Combat | -11 -10 -10 -10 -9 -------- Run | Yrd Mat Min Exi Min Hostile Shots Fired 118 | . 56 43 . 19 Missed 31 | . 16 10 . 5 Damage Taken 1285 | . 406 487 . 392 Core 254 | . 51 65 . 138 Absorbed by Shields . | . . . . . Core Remaining (%) 100 | 100 . . . . Volleys Fired 123 | 1 63 30 14 15 Largest 2 | 2 2 2 2 2 Hottest 115 | 100 100 115 115 115 Shots Fired 165 | 2 78 37 28 20 Gun 83 | 2 15 28 28 10 Cannon 76 | . 62 9 . 5 Launcher 6 | . 1 . . 5 Special . | . . . . . Kinetic 76 | . 62 9 . 5 Thermal 83 | 2 15 28 28 10 Explosive 6 | . 1 . . 5 Electromagnetic . | . . . . . Robot Hit Streak 22 | 1 9 6 22 5 Robot Miss Streak 4 | . 4 3 1 1 Penetration Max . | . . . . . Secondary Targets . | . . . . . Shots Hit Robots 110 | 1 50 21 25 13 Core Hits 56 | 1 26 7 7 15 Critical Kills . | . . . . . Critical Parts Destroyed . | . . . . . Critical Strikes 3 | . 2 . . 1 Burn 1 | . 1 . . . Blast 2 | . 1 . . 1 Melee Attacks . | . . . . . Impact . | . . . . . Slashing . | . . . . . Piercing . | . . . . . Sneak Attacks . | . . . . . Combat Hostiles . | . . . . . Follow-up Attacks . | . . . . . Damage Inflicted 2562 | 12 1033 372 426 719 Guns 988 | 12 148 263 426 139 Cannons 954 | . 739 109 . 106 Explosions 608 | . 134 . . 474 Melee . | . . . . . Ramming 12 | . 12 . . . Kinetic 954 | . 739 109 . 106 Thermal 988 | 12 148 263 426 139 Explosive 608 | . 134 . . 474 Electromagnetic . | . . . . . Impact . | . . . . . Slashing . | . . . . . Piercing . | . . . . . Highest Corruption . | . . . . . Average Corruption . | . . . . . Corruption Purged . | . . . . . Corruption Blocked . | . . . . . Overload Shots . | . . . . . Overflow Damage 132 | . 35 . . 97 Projectiles 35 | . 35 . . . Explosions 97 | . . . . 97 Melee . | . . . . . Knockbacks 18 | . 13 3 . 2 Impact . | . . . . . Kinetic 17 | . 12 3 . 2 Secondary 1 | . 1 . . . Self-Inflicted Damage 84 | . . . . 84 Shots 3 | . . . . 3 Rammed 2 | . 2 . . . Targets Rammed 2 | . 2 . . . Kicked . | . . . . . Crushed . | . . . . . Highest Temperature 303 | 39 180 303 75 81 Average Temperature 87 | 20 78 121 36 34 Received Heat Transfer 470 | . 144 306 . 20 Siege Activations . | . . . . . Robots Corrupted . | . . . . . Combat Hostiles . | . . . . . Parts Fried . | . . . . . Impact Corruptions . | . . . . . Robots Melted . | . . . . . Combat Hostiles . | . . . . . Parts Melted 2 | . . . 2 . Heat Transferred 2104 | 37 518 495 794 260 Parts Sabotaged . | . . . . . Parts Stolen . | . . . . . Parts Stripped . | . . . . . Power Chain Reactions . | . . . . . Alert | -11 -10 -10 -10 -9 ------- Run | Yrd Mat Min Exi Min Peak Influence 221 | 5 221 68 . 91 Initial 3 | . 3 . . . Average 23 | 3 37 12 . 12 Maximum Alert Level 1 | . 1 . . . Low Security (%) 98 | 100 97 100 . 100 Level 1 1 | . 2 . . . Level 2 . | . . . . . Level 3 . | . . . . . Level 4 . | . . . . . Level 5 . | . . . . . High Security . | . . . . . Max Security . | . . . . . Squads Dispatched 4 | . 3 . . 1 Investigation 2 | . 1 . . 1 Extermination . | . . . . . Reinforcement 2 | . 2 . . . Assault . | . . . . . Garrison . | . . . . . Intercept . | . . . . . Searches Triggered . | . . . . . Construction Impeded . | . . . . . Haulers Reinforced . | . . . . . Active Scanning Responses . | . . . . . Cargo Convoy Interrupts . | . . . . . Stealth | -11 -10 -10 -10 -9 --------- Run | Yrd Mat Min Exi Min Distress Signals 1 | . 1 . . . Communications Jammed . | . . . . . Distress Signals . | . . . . . Times Spotted 53 | . 39 6 . 8 Peak Tracking Total 7 | . 5 2 . 7 Tactical Retreats . | . . . . . Traps | -11 -10 -10 -10 -9 ------- Run | Yrd Mat Min Exi Min Traps Triggered 1 | . 1 . . . Indirectly . | . . . . . Trap Hack Attempts . | . . . . . Triggered . | . . . . . Disarmed . | . . . . . Reprogrammed . | . . . . . Reused . | . . . . . Traps Extracted . | . . . . . Installed . | . . . . . Triggered . | . . . . . Machines | -11 -10 -10 -10 -9 ---------- Run | Yrd Mat Min Exi Min Machines Disabled 1 | . 1 . . . Max in Single Turn 1 | . 1 . . . Machines Repaired . | . . . . . Machines Dismantled . | . . . . . Machines Sabotaged . | . . . . . Overloaded Fab Kills . | . . . . . Hacking | -11 -10 -10 -10 -9 --------- Run | Yrd Mat Min Exi Min Machines Accessed 8 | . 4 . 2 2 Terminals 4 | . 4 . . . Fabricators . | . . . . . Repair Stations . | . . . . . Recycling Units . | . . . . . Scanalyzers . | . . . . . Garrison Access . | . . . . . Total Hacks 12 | . 8 . 2 2 Successful 6 | . 2 . 2 2 Failed 5 | . 5 . . . Catastrophic 2 | . 2 . . . Database Lockouts 1 | . 1 . . . Manual 11 | . 10 . 1 . Terminals 8 | . 8 . . . Fabricators . | . . . . . Repair Stations . | . . . . . Recycling Units . | . . . . . Scanalyzers . | . . . . . Garrison Access . | . . . . . Terminal Hacks 6 | . 2 . 2 2 Record 1 | . . . 1 . Robot Analysis 2 | . 2 . . . Open Door 2 | . . . . 2 Derelict Proto ID Bank 1 | . . . 1 . Fabricator Hacks . | . . . . . Repair Station Hacks . | . . . . . Recycling Unit Hacks . | . . . . . Scanalyzer . | . . . . . Garrison Access Hacks . | . . . . . Unauthorized Hacks . | . . . . . Terminals . | . . . . . Fabricators . | . . . . . Repair Stations . | . . . . . Recycling Units . | . . . . . Scanalyzers . | . . . . . Garrison Access . | . . . . . Data Cores Recovered . | . . . . . Used . | . . . . . Hacking Detections 3 | . 3 . . . Full Trace Events 1 | . 1 . . . Feedback Events . | . . . . . Feedback Blocked . | . . . . . Robot Schematics Acquired . | . . . . . Robots Built . | . . . . . Authchips . | . . . . . Time . | . . . . . Total Robot Build Rating . | . . . . . Part Schematics Acquired . | . . . . . Parts Built . | . . . . . Authchips . | . . . . . Time . | . . . . . Total Part Build Rating . | . . . . . Parts Repaired . | . . . . . Time . | . . . . . Parts Recycled . | . . . . . Recycled Matter . | . . . . . Retrieved Matter . | . . . . . Retrieved Components . | . . . . . Parts Scanalyzed . | . . . . . Part Schematics Acquired . | . . . . . Parts Damaged . | . . . . . Bothacking | -11 -10 -10 -10 -9 ------------ Run | Yrd Mat Min Exi Min Used RIF Installer . | . . . . . Robots Hacked . | . . . . . Non-combat . | . . . . . Combat . | . . . . . Robot Hacks Applied . | . . . . . Relay Couplers Released . | . . . . . Fabnet Peak Effective % . | . . . . . Robots Rewired 4 | . . . 4 . Allies Hacked . | . . . . . Hacks Repelled . | . . . . . Allies | -11 -10 -10 -10 -9 -------- Run | Yrd Mat Min Exi Min Total Allies 10 | . . 6 4 . Largest Group 6 | . . 3 6 6 Highest-Rated Group 90 | . . 74 90 90 Highest-Rated Ally 31 | . . 31 21 21 Total Orders . | . . . . . Ally Attacks 52 | . . 13 . 39 Total Damage 886 | . . 226 . 660 Kills 13 | . . 3 . 10 Allies Corrupted . | . . . . . Allies Melted . | . . . . . Intel | -11 -10 -10 -10 -9 ------- Run | Yrd Mat Min Exi Min Robot Analysis Total 2 | . 2 . . . Derelict Logs Recovered 4 | . . 2 . 2 Drone Launches . | . . . . . Drone Recoveries . | . . . . . Exploration | -11 -10 -10 -10 -9 ------------- Run | Yrd Mat Min Exi Min Turns Passed 8821 | 20 3248 2116 1567 1870 Spaces Moved 2986 | 11 1151 702 566 556 Core . | . . . . . Treads 2370 | 1 1151 429 233 556 Legs 10 | 10 . . . . Wheels 606 | . . 273 333 . Hover . | . . . . . Flight . | . . . . . Fastest Speed 120 | 120 160 215 215 240 Average Speed 275 | 123 260 279 258 319 Slowest Speed 480 | 160 320 480 320 320 Overloaded Moves . | . . . . . Propulsion Burnouts . | . . . . . Robots Hopped . | . . . . . Cave-ins Triggered . | . . . . . Exploration Rate (%) 76 | 3 95 99 94 93 Regions Visited 4 Branch Regions 3 Pre-discovered Areas 2 | . . . 1 1 Known Exits Taken . | . . . . . Unknown Exits Taken 4 | 1 1 1 1 . Scrap Searched 2 | . . 1 . 1 Spaces Dug . | . . . . . Terrain Destroyed 44 | . 7 . . 37 Melee . | . . . . . Projectile 2 | . . . . 2 AOE 42 | . 7 . . 35 Terrain Rammed . | . . . . . Walls Destroyed . | . . . . . Machines Disabled . | . . . . . Actions | -11 -10 -10 -10 -9 --------- Run | Yrd Mat Min Exi Min Total 3442 | 14 1317 824 649 638 Wait 192 | . 78 63 12 39 Move 2982 | 10 1150 701 565 556 Hop . | . . . . . Pick Up 39 | . 15 11 4 9 Fast Attach 8 | 1 3 2 1 1 Attach 1 | . . 1 . . Detach 2 | . . . 1 1 Swap 21 | 2 5 5 4 5 Drop 30 | . 1 11 6 12 Fire 123 | 1 63 30 14 15 Melee . | . . . . . Ram . | . . . . . Kick . | . . . . . Crush 2 | . 2 . . . Escape Stasis . | . . . . . Rewire 42 | . . . 42 . Trap . | . . . . . Miscellaneous . | . . . . . Route ------- -11/Scrapyard -10/Materials (discovered 4 exits: [*Mat x3] / [*Min]) -10/Mines (discovered 3 exits: [*Mat x2] / *Exi) -10/Exiles (discovered 2 exits: *Min x2) -9/Mines (discovered 2 exits: [*Mat x2]) History --------- Turn | Location | Event 1 | -11/Scrapyard | Discovered new exit (range 3) 21 | -11/Scrapyard | Entered Materials 185 | -10/Materials | Discovered new exit (range 9) 295 | -10/Materials | Discovered new exit (range 16) 306 | -10/Materials | Build established: Mutant 378 | -10/Materials | Discovered new exit (range 5) 922 | -10/Materials | Central database locked down 1176 | -10/Materials | Discovered new exit (range 14) 3269 | -10/Materials | Entered Mines 3390 | -10/Mines | Joined a pair of Derelicts in attacking an 0b10 outpost 3496 | -10/Mines | Received a Mining Laser from a helpful Derelict 3705 | -10/Mines | Build established: Scavenger-Mutant 4061 | -10/Mines | Discovered new exit (range 15) 4351 | -10/Mines | Learned Materials terminal intel 4905 | -10/Mines | Deemed a non-threat by the Exiles lab entrance 4905 | -10/Mines | Discovered new exit (range 5) 5093 | -10/Mines | Discovered new exit (range 10) 5105 | -10/Mines | Assisted by bots powering up and referring to "LRC-V3" 5385 | -10/Mines | Entered Exiles 5385 | -10/Exiles | Found Exiles lab destroyed 5385 | -10/Exiles | Accompanied by 3 allies 5420 | -10/Exiles | Discovered new exit (range 15) 5727 | -10/Exiles | Opened EX-Vault 5738 | -10/Exiles | Found Prototype Special Weapon 5738 | -10/Exiles | Identified Field Lobotomy Kit 5932 | -10/Exiles | Build established: Commander-Mutant 6061 | -10/Exiles | Learned location of Zion (-7) 6465 | -10/Exiles | Build established: Scavenger-Mutant 6908 | -10/Exiles | Discovered new exit (range 11) 6952 | -10/Exiles | Entered Mines 6952 | -9/Mines | Accompanied by 6 allies 7163 | -9/Mines | Discovered new exit (range 6) 7323 | -9/Mines | Learned location of Storage (-8) 7508 | -9/Mines | A weapon hastily lodged in a ceiling crevice suddenly fell to the ground 7841 | -9/Mines | Received a Rocket Launcher from a helpful Derelict 7899 | -9/Mines | Discovered new exit (range 8) 8264 | -9/Mines | Met a Derelict shopkeep closing up shop 8504 | -9/Mines | Core integrity fell below 50% 8553 | -9/Mines | Found the Drone Emporium 8568 | -9/Mines | Found Prototype Device 8568 | -9/Mines | Identified Thief Drone Bay 8591 | -9/Mines | Build established: Commander-Mutant 8736 | -9/Mines | Assembled infested the area 8741 | -9/Mines | Assisted by a Guerilla fighting off Assembled 8812 | -9/Mines | Lost 5 allies 8812 | -9/Mines | Core integrity fell below 20% 8822 | -9/Mines | Destroyed by as-57598 with Assembled Heavy Rifle Last Messages --------------- squad. 08741_ A derelict emerges from the shadows: "You need to get out of here! I've been tracking a group of Assembled to figure out where they're coming from, and they're closing on this area, come on!" 08747_ T-07 Excavator destroyed. 08806_ Destroyed Asb. F-torch. 08810_ Destroyed Asb. Hover Unit. 08810_ as-38296 destroyed. 08810_ as-43129 destroyed. 08810_ as-49602 destroyed. 08812_ as-29963 destroyed. 08812_ as-12117 destroyed. 08812_ Destroyed Asb. Hover Unit. 08812_ Grenade Launcher destroyed. 08812_ Destroyed Grenade Launcher. 08814_ as-52303 suffers critical hit (Blast). 08814_ as-52303 destroyed. 08815_ The unstable cave ceiling collapses. 08816_ Slug penetrates Wall. 08818_ as-57598 knocked back. Map ----- +----------------------------------------------------+ | | | | | | | | | | | | | | | | | ?????????????????????????????????????????????????? | | ?????????????????????????????????????????????????? | | ?????????????????????????????????????????????????? | | ?????????###################?????????????????????? | | ?????????# |! #?????????????????????? | | ????????# !%= #?????????????????????? | | ???????# =#### #### ## #?????????????????????? | | ????????????????# ?### ## #?##??????????????????? | | ???????????????? ??# ## ## #??????????????????? | | ???????????????##??# ###%a ;####???????????????? | | ???????????????????# ### % ##??????????????? | | ???????????????????# ## # # ##?????????????? | | ???????????????????# ## % # ####????###???? | | ???????????????????# # ## ##??## ##??? | | ???????????????????# # ?## ##?# #??# | | ???????????????????# # ##??## #?# #### | | ???????????????????# ## #???## #?# ## | | ???????????????????# @ #????# ### | | ???????????????????### % #???# ### # | | ?????????????????????# #### ##### ## | | ?????????????????????## #??# ## | | ??????????????????????# ##### #?## # | | ??????????????####????# ##???# ### ### | | ??????????????# ???? #??### #?## | | ??????????????# #???# #### #??## # | | ??????????????# #???## ## ## #???# # | | ??????????????# #????### ## ### #??## # | | ????????????### #??????? k## #######% ##?# | | ???????????## ##?????? ## #???# ! % ### | | ???????????# ##????? ### #?#### ! # | | ???????????# ##???? #?###?##""## %* # | | ???????????## ##??? #?????#" #X= ###### | | ????????????## #### #?????#" #????? | | ?????????????# #?????#" ] #????? | | ?????????????## #?????#" # #????? | | ??????????????# #########?????##""## #????? | | ??????????????# #####??????????#### #?#### | | ??????????????# #?????????????# ###] | | ??????????????## ### #?????????????# ##[ | | ???????????????####?# #?????????????######### ] | | ????????????????????# #?????????????????????## ! | | ????????????????????# #??????????????????????# | +----------------------------------------------------+ Best States ------------- Heat Dissipation 52 Energy Generation 15 Energy Capacity 265 Matter Stores 300 Matter Capacity 300 Sight Range 16 Terrain Scan Range 16 Terrain Scan Density 10 Armor Coverage 150 Evasion (%) 40 Recoil Reduction 2 Item Schematics ----------------- None Robot Schematics ------------------ None Fabricated ------------ Nothing Alien Tech Used ----------------- None Achievements -------------- None Challenges ------------ None Game ------ Seed MultitargetingLightPit Manual? 0 Play Time 00:31:07 Cumulative 72.2 hours Start 2024.09.13 @ 18:09:32 End 2024.09.13 @ 18:39:24 Sessions 1 Manual Loads 0 Difficulty Rogue Special Mode None Game No. 95 Rogue 95 Adventurer 0 Explorer 0 Win Type - Total 1 Types 1/0/0/0/0/0/0/0/0 Lore% 15 Gallery% 53 Achievement% 42 Wizard Run 0 Options --------- Layout 0 ASCII 0 Keyboard 0 Movement Mouse Keybinds 1 Fullscreen 1 Font 18/TerminusBold Map View 76x50 Zoom Use 0% Tactical HUD 1 Map Filters NONE Filters NONE Steam 1 RUN: 61fbf36f-9ba1-4641-ad86-4028dadc4678